bitfinex-derivatives/quotes_ETHF0:USTF0_20241007
["timestamp","ask_amount","ask_price","bid_price","bid_amount"]
[1728302604144,1.468,2470.4,2470.3,3.2078]
[1728302604742,1.468,2470.4,2469.9,3.2078]
[1728302605041,1.468,2470.4,2469.9,4.22023]
[1728302605343,1.469,2470.5,2470.3,0.40489]
[1728302605736,1.469,2470.5,2470.3,1.55489]
[1728302605939,1.469,2470.5,2470.4,0.40489]
[1728302606442,3.89,2470.8,2470.3,1.15]
[1728302606639,1.469,2470.7,2470.6,0.40484]
[1728302607239,1.32875197,2470.9,2470.6,0.40484]
[1728302607438,1.469,2470.8,2470.6,0.40484]
[1728302607637,1.469,2470.8,2470.5,3.2078]
[1728302608341,1.469,2470.8,2470.6,0.40484]
[1728302608649,1.469,2470.8,2470.7,0.40484]
[1728302608845,1.469,2470.8,2470.6,0.40485]
[1728302609346,1.87383,2470.8,2470.5,3.61266]
[1728302609543,1.469,2470.8,2470.5,3.2078]
[1728302609744,1.469,2470.8,2470.6,0.40485]
[1728302609941,3.36425197,2470.9,2470.7,0.40483]
[1728302610248,1.469,2470.8,2470.7,0.40483]
[1728302610546,1.469,2470.8,2470.6,0.40484]
[1728302610742,1.469,2470.8,2470.7,0.40484]
[1728302612045,1.469,2470.8,2470.5,3.2078]
[1728302612444,3.16,2470.7,2470.6,0.40485]
[1728302612655,3.16,2470.7,2470.5,3.2078]
[1728302612948,1.469,2470.8,2470.5,3.2078]
[1728302613246,1.469,2470.8,2470.7,0.40484]
[1728302613650,1.469,2470.8,2470.6,0.40484]
[1728302613840,1.469,2470.8,2470.6,0.40486]
[1728302614558,1.469,2470.8,2469.9,1.01243]
[1728302614559,6.3678,2470.7,2469.9,1.01243]
[1728302614859,3.16,2470.1,2470.0,0.40495]
[1728302615044,4.22407,2470.1,2469.6,3.2078]
[1728302615244,3.16,2469.7,2469.6,3.2078]
[1728302615652,3.16,2469.7,2469.6,7.2566]
[1728302616145,3.16,2469.7,2469.4,1.0643]
[1728302616351,3.56501,2469.7,2469.4,1.46935]
[1728302616556,1.0124,2470.0,2469.4,1.46935]
[1728302616557,0.40499,2469.8,2469.4,1.46934]
[1728302616959,0.40499,2469.8,2469.4,1.46935]
[1728302617455,0.40499,2469.8,2469.5,0.40503]
[1728302618363,3.2078,2469.9,2469.4,2.07693]
[1728302618560,4.68443,2470.2,2469.9,0.40497]
[1728302618855,1.469,2470.0,2469.9,0.40497]
[1728302619754,1.469,2470.0,2469.8,0.40498]
[1728302619959,1.469,2470.0,2469.9,0.40497]
[1728302620158,1.469,2470.3,2470.1,0.40493]
[1728302620660,0.40493,2470.2,2469.9,3.61276]
[1728302621251,1.469,2470.3,2469.9,3.2078]
[1728302621453,0.40494,2470.1,2469.9,3.2078]
[1728302622653,0.40494,2470.1,2469.9,3.61277]
[1728302623054,0.40494,2470.1,2469.9,3.2078]
[1728302623656,0.40495,2470.1,2469.9,3.61277]
[1728302623862,1.469,2470.2,2469.9,3.2078]
[1728302624153,0.40495,2470.0,2469.8,0.40498]
[1728302624952,6.37132,2470.2,2469.4,15.4211]
[1728302625159,5.359,2470.2,2469.4,4.2721]
[1728302625655,5.359,2470.2,2469.5,0.40503]
[1728302625656,0.40501,2469.7,2469.5,0.40503]
[1728302625860,0.40501,2469.7,2469.6,0.40502]
[1728302626051,0.40501,2469.7,2469.5,0.40503]
[1728302626247,1.01243,2469.9,2469.4,4.2721]
[1728302626451,0.40499,2469.8,2469.6,0.40502]
[1728302626655,0.40501,2469.7,2469.4,4.2721]
[1728302626854,0.40501,2469.7,2469.6,0.40502]
[1728302627356,1.01243,2469.9,2469.4,1.0643]
[1728302627557,1.1106,2469.8,2469.5,0.40503]
[1728302627755,0.40502,2469.6,2469.5,0.40503]
[1728302628258,0.40502,2469.6,2469.4,1.0643]
[1728302628259,0.40502,2469.6,2469.4,1.46934]
[1728302628457,2.12308,2469.8,2469.5,0.40504]
[1728302628661,0.40502,2469.6,2469.5,0.40504]
[1728302628857,0.40502,2469.7,2469.5,0.40504]
[1728302629558,0.40502,2469.7,2469.4,1.0643]
[1728302629559,0.40502,2469.7,2469.6,0.40502]
[1728302630259,0.40503,2469.6,2469.5,0.40503]
[1728302630456,0.40501,2469.7,2469.6,0.40502]
[1728302630953,0.40501,2469.7,2469.4,1.0643]
[1728302631163,0.40501,2469.7,2469.6,0.40502]
[1728302631360,0.40501,2469.7,2469.5,0.40502]
[1728302631559,0.40501,2469.7,2469.6,0.40502]
[1728302631952,1.1106,2469.8,2469.6,0.40502]
[1728302632161,3.89,2469.7,2469.4,1.0643]
[1728302632355,3.89,2469.7,2469.3,3.2078]
[1728302632557,4.295,2469.7,2469.3,3.2078]
[1728302632751,0.40503,2469.6,2469.3,3.2078]
[1728302632959,1.06396,2469.5,2469.4,0.40505]
[1728302633552,1.06398,2469.6,2469.4,1.01263]
[1728302633860,1.06398,2469.6,2469.5,0.40504]
[1728302634060,1.1237,2470.1,2469.6,1.01253]
[1728302634360,1.469,2470.0,2469.9,0.40497]
[1728302635190,1.1237,2470.1,2470.0,0.40495]
[1728302635464,1.469,2470.1,2470.0,0.40495]
[1728302635763,3.89,2470.3,2469.8,1.01248]
[1728302635965,1.87392,2470.2,2470.0,0.40495]
[1728302636162,1.0646,2470.4,2469.7,3.2078]
[1728302636370,1.87391,2470.3,2470.1,0.40492]
[1728302636662,1.87391,2470.3,2469.9,1.01243]
[1728302636663,1.469,2470.3,2470.2,0.40492]
[1728302637064,5.359,2470.3,2469.7,4.22032]
[1728302637258,0.40493,2470.2,2470.0,0.40494]
[1728302637659,5.359,2470.3,2469.7,4.22032]
[1728302637859,5.359,2470.3,2469.8,0.40499]
[1728302638162,5.359,2470.3,2469.7,4.22032]
[1728302638163,0.40494,2470.1,2469.9,0.40496]
[1728302638462,0.40492,2470.3,2470.1,0.40493]
[1728302638771,1.06407,2470.0,2469.9,0.40497]
[1728302640261,1.469,2470.0,2469.7,4.22031]
[1728302640460,1.469,2470.0,2469.9,0.40497]
[1728302641665,1.87395,2470.0,2469.9,0.40497]
[1728302641867,1.469,2470.0,2469.9,0.40497]
[1728302642761,2.07686,2470.4,2470.1,0.40494]
[1728302642762,3.16,2470.2,2470.1,0.40494]
[1728302642961,1.06406,2470.0,2469.9,0.40497]
[1728302643165,1.06406,2470.0,2469.9,3.61277]
[1728302643367,1.06406,2470.0,2469.9,7.66157]
[1728302643874,3.16,2470.2,2469.9,7.66157]
[1728302644166,1.06406,2470.1,2470.0,0.40495]
[1728302644667,4.629,2470.1,2470.0,0.40495]
[1728302644862,4.22406,2470.1,2470.0,0.40495]
[1728302646364,3.16,2470.1,2470.0,0.40495]
[1728302648170,4.742,2470.1,2470.0,0.40495]
[1728302648475,3.16,2470.2,2470.1,0.40494]
[1728302648775,4.742,2470.2,2470.1,0.40494]
[1728302648978,4.742,2470.2,2470.0,0.40494]
[1728302649270,5.14693,2470.2,2470.1,0.40494]
[1728302649469,4.742,2470.2,2470.1,0.40494]
[1728302651969,3.16,2470.2,2470.1,0.40494]
[1728302652172,4.742,2470.2,2470.1,0.40494]
[1728302652374,5.14693,2470.2,2470.0,0.40494]
[1728302652575,5.14693,2470.2,2470.1,0.40494]
[1728302653079,0.40494,2470.1,2469.7,1.0125]
[1728302653280,3.16,2470.0,2469.9,0.40496]
[1728302653877,3.56496,2470.0,2469.8,0.40497]
[1728302654475,3.16,2470.0,2469.6,4.2562]
[1728302654780,3.56496,2470.0,2469.6,5.26876]
[1728302654979,2.59432,2470.2,2469.8,0.40497]
[1728302655175,3.16,2469.9,2469.8,0.40497]
[1728302655379,3.16,2469.9,2469.6,4.2562]
[1728302655584,3.16,2469.7,2469.6,0.40502]
[1728302659583,5.9293,2469.9,2469.8,0.40499]
[1728302659779,4.2733,2469.9,2469.8,0.40499]
[1728302659979,1.656,2470.0,2469.9,0.40497]
[1728302661688,1.656,2470.0,2469.9,1.56137]
[1728302662185,3.16,2470.1,2470.0,0.40495]
[1728302662689,1.729,2470.2,2470.0,0.40495]
[1728302662890,3.56491,2470.3,2469.9,5.37661]
[1728302663084,3.16,2470.3,2469.9,5.37661]
[1728302663296,4.889,2470.3,2470.2,0.40492]
[1728302663786,3.16,2470.3,2470.2,0.40492]
[1728302664485,1.074,2470.6,2470.2,0.40492]
[1728302664784,3.2078,2470.7,2470.2,0.40492]
[1728302664785,0.40485,2470.7,2470.5,0.40486]
[1728302664983,2.11044,2470.9,2470.4,3.2078]
[1728302664984,3.16,2470.8,2470.4,3.2078]
[1728302665194,0.40484,2470.8,2470.6,0.40485]
[1728302665384,3.16,2470.7,2470.6,0.40485]
[1728302666390,3.16,2470.7,2470.6,0.40486]
[1728302667087,7.1436,2470.9,2470.4,5.35902]
[1728302667299,5.4146,2470.9,2470.8,0.40482]
[1728302668001,2.2546,2470.9,2470.8,0.40482]
[1728302668489,3.2078,2471.4,2470.8,10.0472]
[1728302668680,3.2078,2471.4,2471.0,3.2078]
[1728302668886,3.61253,2471.4,2471.2,0.40475]
[1728302669182,3.16,2471.5,2471.3,0.40474]
[1728302669383,3.16,2471.5,2471.1,1.01194]
[1728302669590,3.16,2471.5,2471.3,0.40473]
[1728302669896,3.16,2471.5,2471.0,4.21978]
[1728302670193,3.16,2471.5,2471.4,0.40473]
[1728302670381,2.1787,2471.7,2471.6,0.40469]
[1728302670583,0.19251545,2472.2,2471.7,1.0117]
[1728302670780,0.40459,2472.2,2471.7,1.1411]
[1728302670983,0.40459,2472.2,2471.9,0.40463]
[1728302671186,3.16,2472.0,2471.9,0.40463]
[1728302671491,3.16,2472.0,2471.7,1.1411]
[1728302671692,3.56463,2472.0,2471.7,1.54577]
[1728302671991,3.16,2472.0,2471.8,0.40465]
[1728302672287,3.56463,2472.0,2471.8,0.40465]
[1728302672491,4.2887,2472.0,2471.8,0.40465]
[1728302672790,4.69333,2472.0,2471.8,0.40465]
[1728302673187,4.2887,2472.0,2471.8,0.40465]
[1728302673486,4.69333,2472.0,2471.7,1.54577]
[1728302673687,1.0714,2471.9,2471.7,0.40467]
[1728302673992,3.56466,2471.8,2471.6,3.2078]
[1728302674183,3.56466,2471.8,2471.4,1.1416]
[1728302674493,3.16,2471.8,2471.6,0.40469]
[1728302674684,3.56467,2471.8,2471.5,0.4047]
[1728302675286,3.16,2471.6,2471.5,0.4047]
[1728302675584,3.16,2471.6,2471.2,3.2078]
[1728302675585,0.40473,2471.4,2471.2,3.61255]
[1728302675785,3.16,2471.3,2471.2,3.2078]
[1728302676189,3.16,2471.3,2471.2,3.61256]
[1728302678693,3.56474,2471.3,2471.2,3.61256]
[1728302678891,3.56474,2471.3,2471.2,3.2078]
[1728302679192,3.16,2471.3,2471.2,3.61256]
[1728302679789,3.16,2471.3,2471.2,3.2078]
[1728302679991,3.56474,2471.3,2471.2,3.2078]
[1728302680588,3.16,2471.3,2471.2,3.2078]
[1728302681197,0.40477,2471.2,2470.9,0.4048]
[1728302681393,0.40477,2471.2,2470.8,1.0979]
[1728302681394,1.0621,2471.2,2470.8,1.0979]
[1728302681594,1.46686,2471.2,2470.9,0.4048]
[1728302682492,3.56479,2471.1,2470.8,0.40482]
[1728302682692,0.40479,2471.0,2470.8,0.40482]
[1728302682900,1.0816,2471.0,2470.8,0.40482]
[1728302683093,1.0816,2471.0,2470.9,0.40481]
[1728302683696,1.4864,2471.0,2470.8,0.40482]
[1728302684292,1.0816,2471.0,2470.8,0.40482]
[1728302684597,1.0816,2471.0,2470.5,4.27919]
[1728302684598,1.0816,2471.0,2470.9,0.40481]
[1728302684789,1.0816,2471.0,2470.8,0.40481]
[1728302684989,1.0816,2471.0,2470.6,3.2078]
[1728302685196,1.0816,2471.0,2470.9,0.40481]
[1728302685595,1.0816,2471.0,2470.8,0.40481]
[1728302685596,1.4864,2471.0,2470.8,0.40481]
[1728302686093,1.0816,2471.0,2470.6,3.2078]
[1728302686395,1.0816,2471.0,2470.8,0.40482]
[1728302686596,0.40481,2470.9,2470.8,0.40482]
[1728302686994,0.40484,2470.7,2470.6,3.2078]
[1728302687192,0.40489,2470.4,2470.3,0.4049]
[1728302687494,3.16,2470.4,2470.3,0.40491]
[1728302687685,0.40487,2470.5,2470.2,3.2078]
[1728302688194,0.40487,2470.5,2470.3,0.4049]
[1728302688691,4.68797,2470.6,2470.3,0.4049]
[1728302689789,4.2831,2470.6,2470.3,0.4049]
[1728302689993,4.68797,2470.6,2470.3,0.4049]
[1728302690494,4.2831,2470.6,2470.3,0.4049]
[1728302690687,0.40488,2470.5,2470.3,0.4049]
[1728302691092,4.2831,2470.6,2470.3,0.4049]
[1728302691093,4.68797,2470.6,2470.3,0.4049]
[1728302691489,4.2831,2470.6,2470.2,3.2078]
[1728302691686,4.68796,2470.6,2470.3,0.40491]
[1728302692898,4.68796,2470.6,2470.2,3.2078]
[1728302693093,4.2831,2470.6,2470.4,0.40489]
[1728302693293,4.68796,2470.6,2470.2,3.2078]
[1728302693496,4.2831,2470.6,2470.2,3.2078]
[1728302693799,3.5649,2470.4,2470.2,3.2078]
[1728302694196,3.5649,2470.4,2470.2,3.61272]
[1728302694396,0.40491,2470.3,2470.2,3.2078]
[1728302694702,3.5649,2470.4,2470.2,3.2078]
[1728302695205,3.5649,2470.4,2470.2,3.61272]
[1728302695600,3.16,2470.4,2470.2,3.61272]
[1728302695902,1.1231,2470.6,2470.5,0.40487]
[1728302696100,1.1231,2470.6,2470.3,0.40491]
[1728302696303,4.21983,2470.9,2470.2,4.22011]
[1728302696304,3.16,2470.9,2470.2,6.3678]
[1728302696603,3.16,2470.9,2470.8,0.40482]
[1728302697998,3.16,2470.9,2470.7,0.40483]
[1728302698309,3.16,2470.9,2470.6,2.2758]
[1728302698310,3.16,2470.9,2470.8,0.40482]
[1728302698999,3.16,2471.1,2470.9,0.40479]
[1728302699197,3.16,2471.1,2470.6,3.28793]
[1728302699198,3.56477,2471.1,2470.6,3.28793]
[1728302699402,3.56477,2471.1,2470.8,0.40481]
[1728302699700,3.56477,2471.1,2470.6,3.28793]
[1728302699903,3.16,2471.1,2470.6,3.28793]
[1728302700209,3.16,2471.1,2470.9,0.40479]
[1728302700406,3.56478,2471.1,2470.9,0.40479]
[1728302701705,3.16,2471.1,2471.0,0.40479]
[1728302701906,3.16,2471.1,2470.6,2.2758]
[1728302702108,3.16,2471.1,2470.6,1.12]
[1728302702109,3.16,2470.7,2470.6,1.12]
[1728302702305,0.40487,2470.6,2470.4,0.40487]
[1728302702613,3.16,2470.5,2470.4,0.40487]
[1728302702799,3.16,2470.5,2470.3,1.1359]
[1728302703005,3.16,2470.5,2470.4,0.40489]
[1728302703006,3.56488,2470.5,2470.4,0.40489]
[1728302703517,3.16,2470.5,2470.4,0.40489]
[1728302703704,3.56487,2470.5,2470.4,0.40489]
[1728302704104,3.56487,2470.5,2470.3,1.1359]
[1728302704308,3.56487,2470.5,2470.3,1.5408]
[1728302704718,3.56487,2470.5,2470.4,0.40489]
[1728302704906,3.16,2470.5,2470.4,0.40489]
[1728302706912,7.208,2470.5,2470.2,3.2078]
[1728302707109,3.56491,2470.3,2470.2,3.2078]
[1728302709111,3.16,2470.3,2470.1,0.40493]
[1728302709409,3.56492,2470.3,2470.1,0.40493]
[1728302709610,3.16,2470.3,2470.0,1.1088]
[1728302709808,3.16,2470.3,2470.2,0.40492]
[1728302711107,3.16,2470.3,2470.0,1.1088]
[1728302711316,3.56491,2470.3,2470.1,0.40493]
[1728302711809,3.16,2470.3,2470.1,0.40493]
[1728302712211,3.16,2470.3,2470.0,1.1088]
[1728302712406,3.16,2470.3,2470.1,0.40492]
[1728302712814,3.56491,2470.3,2470.1,0.40492]
[1728302713209,3.16,2470.3,2470.0,1.1088]
[1728302713409,3.56491,2470.3,2470.1,0.40493]
[1728302714610,0.40493,2470.2,2470.0,1.51375]
[1728302714918,0.40494,2470.1,2470.0,1.1088]
[1728302715310,4.2911,2470.3,2469.6,5.32325]
[1728302715517,4.2911,2470.3,2469.8,0.40498]
[1728302715518,1.01231,2470.2,2469.8,0.40498]
[1728302715712,1.16,2470.1,2469.8,0.40498]
[1728302716221,1.56495,2470.1,2469.8,0.40498]
[1728302716414,4.72495,2470.1,2469.8,0.40498]
[1728302716611,4.72495,2470.1,2469.6,6.40845]
[1728302716816,4.32,2470.1,2469.6,6.40845]
[1728302717112,4.72494,2470.1,2469.9,0.40496]
[1728302717507,1.16,2470.1,2470.0,0.40495]
[1728302718825,1.56495,2470.1,2469.9,0.40496]
[1728302719120,0.40497,2469.9,2469.8,0.40498]
[1728302719318,0.40497,2469.9,2469.6,5.3959]
[1728302719319,0.40497,2469.9,2469.7,0.40499]
[1728302719519,0.40497,2469.9,2469.8,0.40499]
[1728302719814,3.56497,2470.0,2469.8,0.40499]
[1728302720713,7.2088,2470.0,2469.6,4.293]
[1728302720915,3.16,2469.7,2469.6,1.49021]
[1728302721114,3.565,2469.7,2469.3,3.2078]
[1728302721309,3.565,2469.7,2469.4,0.40505]
[1728302721310,0.40504,2469.5,2469.4,0.40505]
[1728302721508,0.40507,2469.4,2469.2,0.40508]
[1728302721715,3.16,2469.3,2469.2,0.40508]
[1728302724315,1.1504,2469.4,2469.3,0.40507]
[1728302725019,1.55545,2469.4,2469.3,0.40507]
[1728302725320,1.55545,2469.4,2469.0,5.3471]
[1728302726014,1.55545,2469.4,2469.3,0.40507]
[1728302726417,1.55545,2469.4,2469.2,0.40508]
[1728302726718,1.1504,2469.4,2469.0,4.3343]
[1728302726918,3.56508,2469.3,2469.0,4.3343]
[1728302727109,3.56508,2469.3,2469.1,0.40509]
[1728302727316,3.56508,2469.3,2469.0,4.3343]
[1728302727621,3.56508,2469.3,2469.1,0.40509]
[1728302728422,3.56507,2469.3,2469.2,0.40509]
[1728302728617,3.56507,2469.3,2469.0,4.3343]
[1728302728618,0.4051,2469.1,2469.0,3.2078]
[1728302728820,3.16,2469.1,2469.0,3.61292]
[1728302729118,3.5651,2469.1,2469.0,3.2078]
[1728302731415,7.6155,2469.1,2469.0,3.2078]
[1728302734517,13.6155,2469.1,2469.0,2.34749079]
[1728302736324,13.6155,2469.1,2469.0,0.97303079]
[1728302736521,13.6155,2469.1,2468.4,1.1617]
[1728302736522,13.2104,2469.1,2468.4,1.1617]
[1728302736722,13.2104,2469.1,2468.7,3.2078]
[1728302736723,0.40515,2468.8,2468.7,3.2078]
[1728302736929,5.44015,2468.8,2468.7,3.2078]
[1728302737123,10.59475,2468.8,2468.7,3.2078]
[1728302737423,16.59475,2468.8,2468.7,3.2078]
[1728302737822,0.40522,2468.4,2468.2,1.54285]
[1728302738019,3.56523,2468.3,2468.2,1.1376]
[1728302738426,3.16,2468.3,2468.2,1.1376]
[1728302738626,3.16,2468.3,2468.2,1.54285]
[1728302738931,3.56523,2468.3,2468.2,1.1376]
[1728302739331,3.16,2468.3,2468.2,1.1376]
[1728302739529,3.16,2468.3,2467.9,1.0862]
[1728302739530,16.419,2468.3,2467.5,0.40536]
[1728302739836,3.16,2467.7,2467.6,1.0477]
[1728302740136,5.4248,2468.2,2467.7,0.40533]
[1728302740137,1.876,2467.9,2467.7,0.40533]
[1728302740726,1.876,2467.9,2467.6,1.45304]
[1728302742232,1.876,2467.9,2467.6,1.0477]
[1728302742432,3.16,2468.2,2467.6,8.3075]
[1728302742640,3.2078,2468.5,2467.6,8.3075]
[1728302742641,5.0838,2468.5,2467.9,3.16]
[1728302742934,3.16,2468.2,2468.0,1.1185]
[1728302743131,3.56526,2468.2,2468.0,1.1185]
[1728302743326,0.40527,2468.1,2468.0,1.1185]
[1728302743725,3.16,2468.2,2468.0,1.1185]
[1728302743923,3.56526,2468.2,2468.0,1.1185]
[1728302744130,3.56526,2468.2,2468.1,1.0741]
[1728302745322,3.56526,2468.2,2468.1,2.1764]
[1728302747839,4.17314,2468.2,2467.7,2.1721]
[1728302748030,0.40531,2467.9,2467.7,2.1721]
[1728302748233,3.56532,2467.8,2467.7,2.1721]
[1728302748429,2.95690124,2467.8,2467.7,2.1721]
[1728302749333,2.95690124,2467.8,2467.7,1.0698]
[1728302750238,2.55158124,2467.8,2467.4,1.1243]
[1728302750440,3.16,2467.6,2467.4,1.1243]
[1728302750741,3.56535,2467.6,2467.4,1.1243]
[1728302752441,0.40536,2467.5,2467.4,1.1243]
[1728302752938,3.56536,2467.6,2467.4,1.1243]
[1728302753436,3.16,2467.6,2467.4,1.1243]
[1728302753630,3.56535,2467.6,2467.3,1.4752]
[1728302753836,0.40536,2467.5,2467.3,1.4752]
[1728302754239,3.16,2467.6,2467.4,0.40537]
[1728302754437,1.0937,2467.8,2467.3,1.0698]
[1728302754634,5.036,2467.9,2467.4,0.40538]
[1728302754834,5.036,2467.9,2467.8,0.40532]
[1728302755238,3.16,2468.1,2468.0,0.40527]
[1728302757147,3.16,2468.1,2467.9,0.40528]
[1728302757335,3.16,2468.1,2468.0,0.40528]
[1728302760039,3.16,2468.1,2467.8,2.2031]
[1728302760240,3.16,2467.9,2467.8,2.2031]
[1728302760445,3.16,2467.9,2467.8,2.60841]
[1728302760948,3.16,2468.1,2468.0,0.40528]
[1728302761737,3.16,2468.1,2467.8,2.2031]
[1728302762048,3.16,2468.1,2467.9,0.4053]
[1728302762247,0.4053,2468.0,2467.8,2.2031]
[1728302762553,0.4053,2468.0,2467.8,1.0561]
[1728302762554,3.16,2467.9,2467.8,1.0561]
[1728302762845,1.1227,2468.1,2467.8,1.0561]
[1728302762846,3.16,2468.1,2467.8,1.0561]
[1728302763040,3.16,2468.1,2468.0,0.40527]
[1728302763242,5.036,2468.3,2467.9,1.01326]
[1728302763942,5.036,2468.3,2468.2,0.40525]
[1728302764137,3.16,2468.3,2468.2,0.40525]
[1728302764342,5.036,2468.3,2468.2,0.40525]
[1728302765046,5.036,2468.3,2468.1,0.40525]
[1728302765047,5.44123,2468.3,2468.1,0.40525]
[1728302765246,5.036,2468.3,2468.1,0.40525]
[1728302765448,5.036,2468.3,2468.2,0.40525]
[1728302765649,0.40526,2468.2,2467.9,0.40529]
[1728302765845,3.16,2468.0,2467.9,0.40529]
[1728302766050,3.5653,2468.0,2467.8,1.0561]
[1728302766245,3.56529,2468.0,2467.8,1.46141]
[1728302766544,3.16,2468.0,2467.8,1.0561]
[1728302766750,0.4053,2467.9,2467.8,1.0561]
[1728302767139,4.72669,2468.0,2467.8,1.0561]
[1728302767649,3.16,2468.0,2467.9,0.4053]
[1728302767951,3.16,2468.2,2468.1,0.40527]
[1728302770045,3.2078,2468.5,2468.0,1.1147]
[1728302770046,3.16,2468.4,2468.0,1.1147]
[1728302770241,5.029,2468.4,2468.3,0.40523]
[1728302771046,3.16,2468.4,2468.1,1.1779]
[1728302771246,0.40523,2468.4,2468.2,0.40524]
[1728302771445,3.16,2468.3,2468.0,1.1147]
[1728302771652,3.16,2468.3,2468.1,0.40525]
[1728302771851,3.56524,2468.3,2468.1,0.40525]
[1728302772047,3.56524,2468.3,2467.9,0.40528]
[1728302772048,0.40526,2468.2,2467.9,0.40528]
[1728302772240,3.16,2468.0,2467.8,1.125]
[1728302772448,3.56528,2468.0,2467.8,1.53031]
[1728302774151,3.56528,2468.0,2467.6,1.1147]
[1728302774152,3.16,2468.0,2467.6,1.1147]
[1728302774453,3.16,2467.7,2467.6,0.40535]
[1728302774954,3.16,2467.7,2467.5,1.0685]
[1728302775256,3.16,2467.7,2467.6,0.40535]
[1728302775657,0.40535,2467.6,2467.5,1.47385]
[1728302775854,3.16,2467.7,2467.5,1.0685]
[1728302776053,0.40535,2467.6,2467.5,1.47385]
[1728302776263,3.56534,2467.7,2467.6,0.40535]
[1728302776463,0.40535,2467.6,2467.5,1.47385]
[1728302776665,3.56535,2467.7,2467.6,0.40535]
[1728302777259,3.16,2467.7,2467.6,0.40535]
[1728302778251,1.01326,2467.9,2467.5,1.0685]
[1728302778252,3.16,2467.9,2467.5,1.0685]
[1728302778453,0.40532,2467.8,2467.7,0.40532]
[1728302778652,3.56531,2467.9,2467.8,0.40532]
[1728302779153,3.16,2468.4,2467.9,1.01324]
[1728302779360,3.16,2468.4,2468.3,0.40523]
[1728302780958,3.16,2468.4,2468.1,1.01317]
[1728302780959,2.2549,2468.5,2468.4,0.40522]
[1728302781153,1.1048,2468.5,2468.4,0.40522]
[1728302782152,3.16,2468.6,2468.5,0.4052]
[1728302782352,3.16,2468.6,2468.3,1.1236]
[1728302782550,3.56519,2468.6,2468.3,1.1236]
[1728302782751,3.56519,2468.6,2468.4,0.40521]
[1728302783359,3.16,2468.6,2468.3,1.1236]
[1728302783556,3.56518,2468.6,2468.5,0.4052]
[1728302783756,3.16,2468.6,2468.5,0.4052]
[1728302785158,4.2877,2468.8,2468.5,4.0512]
[1728302785460,4.2877,2468.8,2468.3,2.13668]
[1728302785461,4.69286,2468.8,2468.6,0.40517]
[1728302785651,1.1501,2469.0,2468.4,4.17303]
[1728302785851,0.40514,2468.9,2468.7,0.40516]
[1728302786054,4.71523,2469.0,2468.8,0.40515]
[1728302787259,3.16,2469.0,2468.9,0.40513]
[1728302788164,2.2455,2469.2,2468.7,1.01292]
[1728302788369,2.2455,2469.2,2469.1,0.4051]
[1728302789267,1.953,2469.3,2469.2,0.40509]
[1728302789564,0.4051,2469.2,2469.0,0.40511]
[1728302789761,3.56511,2469.1,2468.9,0.40513]
[1728302789959,1.1438,2469.0,2468.9,0.40513]
[1728302790763,3.16,2469.1,2469.0,0.40512]
[1728302795168,3.5651,2469.1,2468.8,1.0752]
[1728302795466,0.40512,2469.0,2468.9,0.40513]
[1728302795672,1.0817,2469.0,2468.5,6.38899]
[1728302795971,0.40516,2468.8,2468.5,1.0755]
[1728302796269,1.0883,2468.9,2468.7,0.40516]
[1728302796469,1.49345,2468.9,2468.5,1.0755]
[1728302796770,1.0883,2468.9,2468.8,0.40515]
[1728302796979,6.3678,2469.2,2469.1,0.4051]
[1728302800577,3.16,2469.2,2469.1,0.4051]
[1728302802578,4.3849,2469.3,2469.2,0.40509]
[1728302802579,1.1771,2469.3,2469.2,0.40509]
[1728302812277,10.136,2469.6,2469.2,4.0496]
[1728302812473,4.2974,2469.7,2469.3,4.22048]
[1728302812679,1.0896,2469.7,2469.6,0.40502]
[1728302812878,1.0896,2470.0,2469.5,1.01258]
[1728302813076,2.1677,2470.0,2469.9,0.40497]
[1728302813979,1.0896,2470.0,2469.9,0.40497]
[1728302814282,4.2496,2470.0,2469.8,0.40498]
[1728302814785,4.2496,2470.0,2469.9,0.40497]
[1728302814989,4.65456,2470.0,2469.8,0.40498]
[1728302815290,0.40498,2469.9,2469.4,13.3153]
[1728302815475,3.16,2469.8,2469.4,2.1663]
[1728302815883,3.16,2469.8,2469.7,0.405]
[1728302817278,3.16,2469.9,2469.8,0.40499]
[1728302817487,1.0896,2470.0,2469.5,1.0126]
[1728302817684,3.16,2469.9,2469.5,1.0126]
[1728302817887,3.16,2469.9,2469.7,0.40499]
[1728302818076,3.16,2469.9,2469.8,0.40499]
[1728302818783,7.61378,2469.9,2469.7,0.405]
[1728302818983,3.56498,2469.9,2469.7,0.405]
[1728302819183,3.16,2469.9,2469.7,0.405]
[1728302819385,3.16,2469.9,2469.8,0.40499]
[1728302819781,7.2088,2469.9,2469.8,0.40499]
[1728302820776,3.16,2469.9,2469.8,0.40499]
[1728302821184,1.0896,2470.0,2469.9,0.40497]
[1728302821583,4.2859,2470.1,2470.0,0.40495]
[1728302821790,3.2078,2470.1,2470.0,0.40495]
[1728302821986,1.0879,2470.2,2470.1,0.40494]